bitfinex/quotes_SOLUSD_20250410
["timestamp","ask_amount","ask_price","bid_price","bid_amount"]
[1744292082714,58.16412642,113.04,112.97,8.8516]
[1744292083022,58.16412642,113.01,112.96,10.4701]
[1744292083201,8.8479,113.02,112.97,58.16412642]
[1744292083392,8.8473,113.03,112.98,58.16412642]
[1744292083595,26.0,113.04,113.0,58.16412642]
[1744292083799,84.16412642,113.04,113.0,58.16412642]
[1744292083996,26.0,113.04,113.01,58.16412642]
[1744292084397,18.64964886,113.03,112.99,58.16412642]
[1744292084603,84.16412642,113.04,112.98,58.16412642]
[1744292084604,58.16412642,113.02,112.98,58.16412642]
[1744292084808,26.0,113.04,112.98,58.16412642]
[1744292085112,34.8469,113.04,113.0,58.16412642]
[1744292085320,58.16412642,113.05,113.0,58.16412642]
[1744292085518,58.16412642,113.05,112.97,9.13562314]
[1744292085519,58.16412642,113.05,113.01,58.16412642]
[1744292085694,18.64964886,113.08,113.03,58.16412642]
[1744292085895,76.81377528,113.08,112.99,18.933972]
[1744292086113,76.81377528,113.08,113.03,58.16412642]
[1744292086323,67.00662642,113.09,113.04,58.16412642]
[1744292086494,58.16412642,113.11,113.07,58.16412642]
[1744292086810,58.16412642,113.1,113.06,58.16412642]
[1744292087119,8.8393,113.13,113.07,58.16412642]
[1744292087615,3.21390559,113.12,113.04,58.44844956]
[1744292087799,58.16412642,113.11,113.06,58.16412642]
[1744292088008,76.81377528,113.1,113.05,58.16412642]
[1744292088329,8.8393,113.13,113.09,58.16412642]
[1744292088493,67.00342642,113.13,113.04,60.02014956]
[1744292088695,8.8393,113.13,113.08,58.16412642]
[1744292088893,67.00502642,113.11,113.05,8.8456]
[1744292089116,85.65427528,113.12,113.07,58.16412642]
[1744292089310,27.49014886,113.12,113.05,8.8456]
[1744292089513,85.65427528,113.12,113.08,58.16412642]
[1744292089727,27.48664886,113.16,113.11,58.16412642]
[1744292089894,58.16412642,113.17,113.12,58.16412642]
[1744292090097,58.16412642,113.17,113.13,58.16412642]
[1744292090431,58.16412642,113.16,113.11,58.16412642]
[1744292090934,58.16412642,113.16,113.06,90.0442]
[1744292090935,58.16412642,113.13,113.06,90.0442]
[1744292091103,67.00382642,113.13,113.08,58.16412642]
[1744292091504,58.16412642,113.11,113.06,58.16412642]
[1744292091719,8.8397,113.13,113.09,58.16412642]
[1744292091903,43.96552714,113.15,113.05,8.8456]
[1744292091904,67.00302642,113.14,113.1,58.16412642]
[1744292092315,85.65157528,113.15,113.07,0.28432314]
[1744292092515,58.16412642,113.14,113.1,58.16412642]
[1744292092722,58.16412642,113.11,113.05,8.8456]
[1744292093031,58.16412642,113.11,113.04,1.5717]
[1744292093032,58.16412642,113.1,113.06,58.16412642]
[1744292093233,58.16412642,113.1,113.04,58.16412642]
[1744292093234,58.16412642,113.08,113.04,58.16412642]
[1744292093533,8.8418,113.1,112.99,1.5898]
[1744292093534,58.16412642,113.07,112.99,1.5898]
[1744292093822,58.16412642,113.07,113.02,58.16412642]
[1744292094032,26.0,113.06,113.02,58.16412642]
[1744292094234,0.28432314,113.08,113.02,58.16412642]
[1744292094534,0.28432314,113.08,112.93,89.0085]
[1744292094535,18.64964886,113.02,112.93,89.0085]
[1744292094694,18.64964886,113.02,112.96,22.66]
[1744292094695,84.16412642,112.99,112.96,22.66]
[1744292094901,58.16412642,112.97,112.93,0.063]
[1744292095096,76.81377528,112.99,112.94,58.16412642]
[1744292095328,8.8487,113.01,112.93,0.063]
[1744292095329,8.8487,113.01,112.96,58.16412642]
[1744292095495,26.0,113.02,112.93,0.063]
[1744292095700,84.16412642,113.02,112.94,18.933972]
[1744292095897,58.16412642,113.02,112.98,58.16412642]
[1744292096125,8.8456,113.05,112.94,99.84964886]
[1744292096332,58.16412642,113.03,112.95,18.933972]
[1744292096925,58.16412642,113.03,112.98,58.16412642]
[1744292097133,58.16412642,113.03,112.99,58.16412642]
[1744292097431,18.933972,113.06,113.01,58.16412642]
[1744292097602,58.16412642,113.05,113.0,58.16412642]
[1744292097803,58.16412642,113.03,112.96,9.13692314]
[1744292098010,58.16412642,113.01,112.94,81.2]
[1744292098204,18.64964886,113.02,112.97,58.16412642]
[1744292098422,58.16412642,113.0,112.94,8.854]
[1744292098622,58.16412642,113.0,112.96,58.16412642]
[1744292098928,58.16412642,113.01,112.94,8.854]
[1744292099137,8.8503,112.99,112.95,58.16412642]
[1744292099314,61.39916207,113.0,112.95,58.16412642]
[1744292099528,12.08483565,113.0,112.96,58.16412642]
[1744292099713,70.24896207,113.0,112.96,58.16412642]
[1744292099914,3.23503565,113.0,112.96,58.16412642]
[1744292100114,3.23503565,113.0,112.93,8.9176]
[1744292100336,67.01222642,113.02,112.97,58.16412642]
[1744292100534,58.16412642,113.01,112.97,58.16412642]
[1744292100741,76.81377528,113.04,112.99,58.16412642]
[1744292100933,8.8456,113.05,112.94,18.933972]
[1744292101248,30.73592079,113.04,112.95,30.987]
[1744292101453,3.23957193,113.04,113.03,58.16412642]
[1744292101616,61.40369835,113.04,112.97,7.8457]
[1744292101823,8.8458,113.05,112.99,58.16412642]
[1744292102055,6.2118,113.11,113.04,58.16412642]
[1744292102349,6.47749653,113.1,113.06,58.16412642]
[1744292102553,6.47749653,113.1,113.09,58.16412642]
[1744292102758,6.47749653,113.1,113.03,18.933972]
[1744292103061,58.16412642,113.07,113.0,0.28432314]
[1744292103220,58.16412642,113.08,113.03,58.16412642]
[1744292103417,44.64964886,113.09,113.03,58.16412642]
[1744292103620,58.16412642,113.07,113.02,67.01152642]
[1744292103819,0.28432314,113.1,113.04,58.16412642]
[1744292104040,58.16412642,113.08,113.02,8.8474]
[1744292104238,58.16412642,113.06,113.01,58.16412642]
[1744292104628,58.16412642,113.03,112.99,67.01432642]
[1744292104834,18.64964886,113.08,113.01,58.16412642]
[1744292105040,26.0,113.09,113.04,58.16412642]
[1744292105222,8.8421,113.1,113.05,58.16412642]
[1744292105556,58.16412642,113.07,113.0,8.8495]
[1744292105722,58.16412642,113.06,113.0,8.8495]
[1744292105922,18.64964886,113.08,113.02,58.16412642]
[1744292106225,61.40567962,113.07,113.03,58.16412642]
[1744292106418,3.2415532,113.07,113.04,58.16412642]
[1744292106629,87.40567962,113.07,113.02,58.16412642]
[1744292106852,87.40567962,113.07,113.03,58.16412642]
[1744292107055,8.8421,113.1,113.04,58.16412642]
[1744292107351,8.8421,113.1,113.01,0.28432314]
[1744292107352,18.64964886,113.11,113.03,0.28432314]
[1744292107560,64.65970218,113.09,113.02,8.8479]
[1744292107728,58.16412642,113.06,113.01,58.16412642]
[1744292107927,58.16412642,113.04,113.0,58.16412642]
[1744292108155,58.16412642,113.02,112.98,0.063]
[1744292108348,0.28432314,113.04,112.98,58.22712642]
[1744292108650,18.64964886,113.05,112.98,58.22712642]
[1744292108651,58.16412642,113.03,112.98,8.9139]
[1744292108859,61.41335428,113.03,112.98,0.063]
[1744292109157,61.41335428,113.03,112.98,58.22712642]
[1744292109353,3.24922786,113.03,113.01,58.16412642]
[1744292109551,3.24922786,113.03,113.02,58.16412642]
[1744292109731,18.64964886,113.08,113.02,58.16412642]
[1744292109941,6.2646,113.11,113.06,58.16412642]
[1744292110258,58.16412642,113.11,113.06,58.16412642]
[1744292110441,58.16412642,113.08,113.01,8.1032]
[1744292110644,76.81377528,113.06,113.01,8.1032]
[1744292110843,58.16412642,113.05,113.0,58.16412642]
[1744292111149,58.16412642,113.05,112.98,67.07812642]
[1744292111455,58.16412642,112.99,112.98,0.063]
[1744292111626,77.09809842,112.99,112.98,0.063]
[1744292111942,18.64964886,112.99,112.98,0.063]
[1744292112254,77.09809842,112.99,112.98,0.063]
[1744292112432,81.5,113.02,112.98,0.063]
[1744292112634,58.16412642,113.0,112.98,0.063]
[1744292112856,8.8472,113.03,112.98,0.063]
[1744292112857,3.25906847,112.99,112.98,0.063]
[1744292113854,147.37159331,112.99,112.98,0.063]
[1744292114024,26.0,112.95,112.93,0.063]
[1744292114225,77.09809842,112.94,112.93,0.063]
[1744292114758,80.35716689,112.94,112.93,0.063]
[1744292114957,18.64964886,112.9,112.86,22.743]
[1744292115169,26.0,112.91,112.86,80.90712642]
[1744292115471,58.16412642,112.91,112.87,58.16412642]
[1744292115640,90.355,112.93,112.86,0.063]
[1744292115837,58.16412642,112.88,112.86,0.063]
[1744292116069,84.16412642,112.87,112.86,0.063]
[1744292116271,103.09809842,112.87,112.86,0.063]
[1744292116848,106.3452053,112.87,112.86,0.063]
[1744292117050,164.50933172,112.87,112.86,0.063]
[1744292117467,57.04077888,112.87,112.86,0.063]
[1744292117666,112.54237803,112.87,112.86,0.063]
[1744292117870,112.82670117,112.87,112.86,0.063]
[1744292118183,121.40207803,112.87,112.86,0.063]
[1744292118474,121.68640117,112.87,112.86,0.063]
[1744292119249,121.68640117,112.87,112.84,0.063]
[1744292119250,18.933972,112.86,112.84,0.063]
[1744292119578,58.16412642,112.86,112.84,0.063]
[1744292120069,81.5,112.91,112.84,58.22712642]
[1744292120257,58.16412642,112.9,112.85,58.16412642]
[1744292120451,58.16412642,112.89,112.85,58.16412642]
[1744292120658,58.16412642,112.88,112.84,58.22712642]
[1744292121161,58.16412642,112.87,112.84,0.063]
[1744292121550,8.8584,112.89,112.84,58.22712642]
[1744292121766,58.16412642,112.89,112.84,58.22712642]
[1744292121943,58.16412642,112.88,112.84,0.063]
[1744292122364,27.791572,112.9,112.85,58.16412642]
[1744292122365,76.81377528,112.9,112.85,58.16412642]
[1744292122573,81.5,112.91,112.86,58.16412642]
[1744292122775,58.16412642,112.9,112.86,58.16412642]
[1744292122950,18.64964886,112.91,112.84,0.063]
[1744292123149,18.64964886,112.91,112.84,58.22712642]
[1744292123150,58.16412642,112.89,112.84,58.22712642]
[1744292123454,58.16412642,112.87,112.84,0.063]
[1744292123653,8.8597,112.88,112.84,0.063]
[1744292124049,58.16412642,112.87,112.84,0.063]
[1744292124379,58.16412642,112.86,112.84,0.063]
[1744292124670,26.0,112.85,112.84,0.063]
[1744292124876,26.0,112.86,112.84,0.063]
[1744292125050,81.5,112.91,112.85,58.16412642]
[1744292125252,67.02052642,112.92,112.87,58.16412642]
[1744292125459,58.16412642,112.91,112.84,0.063]
[1744292125661,58.16412642,112.89,112.84,8.9249]
[1744292125950,18.64964886,112.92,112.87,58.16412642]
[1744292126171,58.16412642,112.93,112.88,58.16412642]
[1744292126352,81.5,112.96,112.91,58.16412642]
[1744292126562,58.16412642,112.93,112.86,8.1771]
[1744292126767,76.81377528,112.92,112.88,58.16412642]
[1744292126975,76.81377528,112.92,112.87,58.16412642]
[1744292127166,58.16412642,112.91,112.86,8.1771]
[1744292127366,18.64964886,112.9,112.87,58.16412642]
[1744292127569,26.0,112.92,112.89,58.16412642]
[1744292127769,58.16412642,112.95,112.91,58.16412642]
[1744292127961,18.64964886,112.92,112.86,75.20162642]
[1744292128276,76.81377528,112.92,112.86,17.0375]
[1744292128454,26.0,112.93,112.9,58.16412642]
[1744292128655,58.16412642,112.94,112.86,75.20162642]
[1744292128863,58.16412642,112.94,112.86,17.0375]
[1744292128864,76.81377528,112.92,112.86,17.0375]
[1744292129079,18.64964886,112.92,112.88,58.16412642]
[1744292129278,26.0,112.93,112.9,58.16412642]
[1744292129473,58.16412642,112.95,112.9,58.16412642]
[1744292129674,8.8534,112.95,112.9,58.16412642]
[1744292129974,76.81377528,112.96,112.91,58.16412642]
[1744292130179,8.8527,112.96,112.92,58.16412642]
[1744292130357,8.8527,112.96,112.87,31.009]
[1744292130358,0.28432314,112.94,112.89,58.16412642]
[1744292130558,18.64964886,112.92,112.88,58.16412642]
[1744292130773,30.9844,112.96,112.86,59.80212642]
[1744292130774,58.16412642,112.9,112.86,59.80212642]
[1744292130982,58.16412642,112.89,112.86,1.638]
[1744292131285,18.64964886,112.86,112.84,0.063]
[1744292131583,26.0,112.87,112.85,58.16412642]
[1744292131885,18.64964886,112.9,112.84,0.063]
[1744292132181,18.64964886,112.9,112.87,58.16412642]
[1744292132361,18.64964886,112.9,112.86,58.16412642]
[1744292132564,58.16412642,112.91,112.87,58.16412642]
[1744292132762,18.64964886,112.9,112.84,0.063]
[1744292132958,76.81377528,112.9,112.84,0.063]
[1744292133165,26.0,112.92,112.88,58.16412642]
[1744292133383,26.0,112.91,112.84,18.996972]
[1744292133566,26.0,112.91,112.86,80.31382642]
[1744292133770,26.0,112.91,112.87,67.02382642]
[1744292133985,26.0,112.91,112.87,8.8597]
[1744292134386,76.81377528,112.9,112.85,8.8613]
[1744292134582,18.64964886,112.9,112.84,8.9247]
[1744292134779,84.16412642,112.89,112.85,58.16412642]
[1744292134967,26.0,112.89,112.84,8.9247]
[1744292135170,26.0,112.89,112.85,58.16412642]
[1744292135489,84.16412642,112.89,112.85,58.16412642]
[1744292135693,93.02232642,112.89,112.84,8.9247]
[1744292135892,26.0,112.89,112.84,67.08882642]
[1744292136093,26.0,112.89,112.85,58.16412642]
[1744292136270,27.50734886,112.9,112.84,8.9247]
[1744292136271,26.0,112.9,112.88,58.16412642]
[1744292136585,26.0,112.9,112.84,31.0799]
[1744292136765,26.0,112.9,112.84,8.9247]
[1744292136966,26.0,112.9,112.88,58.16412642]
[1744292137159,18.79181043,112.93,112.89,58.16412642]
[1744292137358,58.16412642,112.91,112.84,31.0799]
[1744292137562,0.14216157,112.91,112.87,67.02322642]
[1744292137794,18.79181043,112.91,112.88,58.16412642]
[1744292138086,85.81253685,112.91,112.87,58.16412642]
[1744292138285,58.30628799,112.91,112.87,58.16412642]
[1744292138466,58.30628799,112.89,112.84,0.063]
[1744292138664,58.30628799,112.89,112.84,58.22712642]
[1744292139190,58.16412642,112.85,112.84,0.063]
[1744292139370,77.09809842,112.85,112.84,0.063]
[1744292139768,85.95939842,112.85,112.84,0.063]
[1744292140075,77.09809842,112.85,112.84,0.063]
[1744292140992,85.95939842,112.85,112.84,0.063]
[1744292141896,3.22827074,112.85,112.84,0.063]
[1744292142185,76.81377528,112.86,112.84,0.063]
[1744292142567,58.16412642,112.91,112.85,58.16412642]
[1744292142771,58.16412642,112.92,112.84,0.063]
[1744292143064,58.16412642,112.93,112.84,1.6775]
[1744292143470,18.933972,112.92,112.88,58.16412642]
[1744292143682,18.933972,112.92,112.87,8.8593]
[1744292143877,67.30444956,112.92,112.88,58.16412642]
[1744292144292,76.81377528,112.91,112.86,8.8601]
[1744292144470,76.81377528,112.91,112.87,58.16412642]
[1744292144791,0.28432314,112.9,112.86,58.16412642]
[1744292144991,58.44844956,112.9,112.85,67.02482642]
[1744292145300,58.44844956,112.9,112.84,68.70342642]
[1744292145301,58.16412642,112.89,112.84,68.70342642]
[1744292145678,77.09809842,112.88,112.84,0.063]
[1744292145995,26.0,112.86,112.84,0.063]
[1744292146168,26.0,112.85,112.84,0.063]
[1744292146370,18.933972,112.85,112.84,0.063]
[1744292146586,77.09809842,112.85,112.84,0.063]
[1744292147385,58.16412642,112.86,112.84,0.063]
[1744292147586,26.0,112.85,112.84,0.063]
[1744292147894,26.0,112.87,112.84,58.22712642]
[1744292148076,18.64964886,112.9,112.86,58.16412642]
[1744292148270,18.64964886,112.9,112.87,58.16412642]
[1744292148470,8.8567,112.91,112.84,0.063]
[1744292148667,26.0,112.92,112.87,58.16412642]
[1744292148872,18.64964886,112.9,112.87,58.16412642]
[1744292149100,30.9898,112.94,112.84,0.063]
[1744292149101,18.64964886,112.93,112.89,58.16412642]
[1744292149401,58.16412642,112.93,112.89,58.16412642]
[1744292149595,26.0,112.92,112.89,58.16412642]
[1744292149776,18.933972,112.92,112.87,8.8597]
[1744292150299,26.0,112.91,112.87,8.8597]
[1744292150503,26.0,112.91,112.88,58.16412642]
[1744292150686,0.28432314,112.93,112.88,58.16412642]
[1744292150883,26.0,112.9,112.88,58.16412642]
[1744292151194,26.0,112.9,112.86,15.2223]
[1744292151399,26.0,112.9,112.85,8.8612]
[1744292151600,26.0,112.9,112.89,58.16412642]
[1744292151775,26.0,112.91,112.89,67.02222642]
[1744292151974,18.64964886,112.94,112.9,44.43312642]
[1744292152177,0.28432314,112.93,112.89,58.16412642]
[1744292152499,18.64964886,112.92,112.88,67.02262642]
[1744292152808,26.0,112.92,112.9,58.16412642]
[1744292152973,26.0,112.92,112.91,58.16412642]
[1744292153173,26.0,112.92,112.88,8.8585]
[1744292153373,18.64964886,112.91,112.87,59.76642642]
[1744292153593,58.16412642,112.89,112.84,58.22712642]
[1744292153800,67.02252642,112.89,112.85,58.16412642]
[1744292153993,67.02252642,112.89,112.84,8.9249]
[1744292154206,84.16412642,112.86,112.84,0.063]
[1744292154375,44.933972,112.85,112.84,0.063]
[1744292154977,44.64964886,112.85,112.84,0.063]
[1744292155407,54.47822153,112.85,112.84,0.063]
[1744292156114,35.82857267,112.85,112.84,0.063]
[1744292156414,9.82857267,112.85,112.84,58.22712642]
[1744292156903,3.27311774,112.85,112.84,58.22712642]
[1744292157408,47.9227666,112.85,112.84,0.063]
[1744292157578,106.08689302,112.85,112.84,0.063]
[1744292157903,48.20708974,112.85,112.84,0.063]
[1744292158276,115.23251616,112.85,112.84,0.063]
[1744292158480,115.23251616,112.85,112.84,0.0001]
[1744292158702,44.64964886,112.82,112.81,0.063]
[1744292158879,102.81377528,112.82,112.81,0.063]
[1744292159392,48.20708974,112.82,112.81,0.063]
[1744292159596,47.9227666,112.82,112.81,0.063]
[1744292159779,54.51609472,112.82,112.81,0.063]
[1744292160210,35.86644586,112.82,112.81,0.063]
[1744292160504,9.86644586,112.82,112.81,58.22712642]
[1744292160683,9.86644586,112.82,112.81,0.063]
[1744292160877,3.27311774,112.82,112.81,58.22712642]
[1744292161300,18.64964886,112.86,112.81,58.22712642]
[1744292161502,49.66144886,112.86,112.81,0.063]
[1744292161691,25.5146341,112.85,112.81,58.22712642]
[1744292161888,3.27311774,112.84,112.81,0.063]
[1744292162108,1.774e-05,112.84,112.83,58.16412642]
[1744292162290,6.5806621,112.85,112.83,58.44844956]
[1744292162605,67.01752642,112.95,112.86,0.28432314]
[1744292162780,58.16412642,112.93,112.84,0.28432314]
[1744292162981,18.64964886,112.9,112.82,39.0356]
[1744292163218,26.0,112.89,112.87,58.16412642]
[1744292163401,18.64964886,112.9,112.86,58.16412642]
[1744292163609,18.64964886,112.9,112.82,39.31992314]
[1744292163783,18.64964886,112.94,112.88,58.16412642]
[1744292164110,67.01852642,112.94,112.87,8.8597]
[1744292164294,0.03,112.97,112.87,31.29332314]
[1744292164497,26.0,112.94,112.92,58.16412642]
[1744292164692,26.0,112.93,112.87,8.8597]
[1744292164899,0.08647979,112.97,112.92,58.16412642]
[1744292165206,0.08647979,112.97,112.96,58.16412642]
[1744292165811,0.03,112.95,112.92,58.16412642]
[1744292165990,0.08647979,112.97,112.93,9.13932314]
[1744292166194,0.08647979,112.97,112.95,0.28432314]
[1744292166399,0.08647979,112.97,112.93,30.9926]
[1744292166709,0.08647979,112.97,112.94,18.933972]
[1744292166905,0.08647979,112.97,112.96,58.16412642]
[1744292167113,0.08647979,112.97,112.92,8.8554]
[1744292167313,19.02045179,112.97,112.93,58.16412642]
[1744292167605,58.53492935,112.97,112.93,58.16412642]
[1744292167812,0.37080293,112.97,112.94,58.16412642]
[1744292168015,0.37080293,112.97,112.92,58.16412642]
[1744292168016,76.81377528,112.96,112.92,58.16412642]
[1744292168313,18.933972,112.96,112.91,58.16412642]
[1744292168486,0.08647979,112.97,112.94,58.16412642]
[1744292168687,18.87829022,112.97,112.94,58.16412642]
[1744292168917,18.79181043,112.95,112.89,17.0432]
[1744292169087,0.14216157,112.93,112.89,59.70592642]
[1744292169408,26.08647979,112.97,112.92,116.32825284]
[1744292169613,26.08647979,112.97,112.95,58.16412642]
[1744292169806,0.08647979,112.97,112.95,58.16412642]
[1744292170002,18.73612865,112.97,112.9,22.142]
[1744292170213,58.44844956,112.96,112.88,31.0063]
[1744292170402,0.28432314,112.94,112.88,8.8589]
[1744292170590,58.44844956,112.94,112.9,58.16412642]
[1744292170795,18.64964886,112.9,112.84,24.06094124]
[1744292170999,0.28432314,112.9,112.85,72.56412642]
[1744292171199,77.09809842,112.88,112.85,14.4]
[1744292171607,58.44844956,112.88,112.85,14.4]
[1744292171805,58.44844956,112.86,112.84,13.63014124]
[1744292172115,18.933972,112.89,112.85,58.16412642]
[1744292172415,26.0,112.89,112.86,58.16412642]
[1744292172618,18.933972,112.91,112.86,58.16412642]
[1744292172792,18.933972,112.91,112.87,58.16412642]
[1744292172993,77.09809842,112.91,112.86,58.16412642]
[1744292173198,18.933972,112.91,112.85,14.4]
[1744292173508,8.8544,112.94,112.88,58.16412642]
[1744292173812,0.08647979,112.97,112.91,58.16412642]
[1744292174015,0.08647979,112.97,112.94,58.16412642]
[1744292174596,58.25060621,112.97,112.9,8.8573]
[1744292174798,0.08647979,112.97,112.96,58.16412642]
[1744292175099,0.08647979,112.97,112.9,37.1573]
[1744292175505,58.16412642,112.94,112.89,58.16412642]
[1744292175824,77.09809842,112.95,112.9,58.16412642]
[1744292176029,85.95189842,112.95,112.9,58.16412642]
[1744292176199,0.08647979,112.97,112.89,31.0034]
[1744292176395,0.08647979,112.97,112.96,58.16412642]
[1744292178092,0.08647979,112.97,112.96,67.01672642]
[1744292178693,0.03,112.98,112.96,125.18085284]
[1744292178908,0.03,112.98,112.96,8.8526]
[1744292179109,0.03,112.98,112.97,58.16412642]
[1744292179621,0.03,112.98,112.96,58.16412642]
[1744292179797,0.03,112.98,112.97,58.16412642]
[1744292180207,0.0001,112.98,112.97,125.18015284]
[1744292180416,0.0001,112.99,112.97,144.11412484]
[1744292180620,0.03,113.02,112.98,135.26222484]
[1744292180820,0.03,113.02,113.01,58.16412642]
[1744292181734,0.03,113.04,113.01,135.26222484]
[1744292181929,0.03,113.04,113.03,116.32825284]
[1744292182100,0.03,113.05,113.03,67.01132642]
[1744292182299,0.03,113.14,113.04,143.01912484]
[1744292182529,0.03,113.14,113.11,58.16412642]
[1744292182840,26.0,113.13,113.04,84.85499842]
[1744292183133,0.03,113.14,113.12,58.16412642]
[1744292183424,0.03,113.14,113.08,18.933972]
[1744292183930,58.16412642,113.13,113.08,58.16412642]
[1744292184232,58.16412642,113.09,113.02,8.8479]
[1744292184524,58.16412642,113.09,113.04,58.16412642]
[1744292184729,26.0,113.11,113.07,58.16412642]
[1744292185021,58.16412642,113.11,113.06,58.16412642]
[1744292185321,9.12452314,113.12,113.05,58.16412642]
[1744292185322,58.16412642,113.09,113.05,58.16412642]
[1744292185524,26.0,113.09,113.06,58.16412642]
[1744292185742,58.16412642,113.12,113.07,58.16412642]
[1744292186407,58.16412642,113.12,113.08,67.00732642]
[1744292186734,77.09809842,113.1,113.04,8.8464]
[1744292186906,81.53,113.14,113.09,58.16412642]
[1744292187110,81.53,113.14,113.05,18.64964886]
[1744292187111,0.03,113.14,113.05,18.64964886]
[1744292187335,58.16412642,113.13,113.08,58.16412642]
[1744292187635,58.16412642,113.13,113.09,58.16412642]
[1744292187833,58.16412642,113.13,113.04,133.64294956]
[1744292187834,58.16412642,113.11,113.04,89.12652642]
[1744292188007,26.0,113.11,113.07,58.16412642]
[1744292188202,18.933972,113.1,113.06,58.16412642]
[1744292188405,58.16412642,113.08,113.02,8.8479]
[1744292188604,77.09809842,113.07,113.02,67.01202642]
[1744292188827,58.16412642,113.07,113.03,58.16412642]
[1744292189008,58.16412642,113.08,113.03,58.16412642]
[1744292189199,58.16412642,113.07,113.03,58.16412642]
[1744292189406,58.16412642,113.07,113.02,8.8479]
[1744292189407,18.933972,113.09,113.04,58.16412642]
[1744292189616,77.09809842,113.1,113.05,58.16412642]
[1744292189826,18.933972,113.1,113.02,30.9678]
[1744292190131,58.44844956,113.08,113.03,58.16412642]
[1744292190339,58.16412642,113.07,113.03,58.16412642]
[1744292190508,58.16412642,113.07,113.03,67.01092642]
[1744292191232,58.16412642,113.05,112.99,6.6657]
[1744292191525,58.16412642,113.05,112.99,8.8503]
[1744292191726,58.16412642,113.04,112.99,8.8503]
[1744292192120,18.933972,113.03,112.99,58.16412642]
[1744292192313,26.0,113.06,113.02,58.16412642]
[1744292192630,81.5,113.09,113.05,58.16412642]
[1744292192803,81.5,113.13,113.06,58.16412642]
[1744292193009,18.67964886,113.14,113.08,58.16412642]
[1744292193209,58.16412642,113.12,113.03,18.933972]
[1744292193526,58.16412642,113.12,113.07,58.16412642]
[1744292193835,26.0,113.08,113.02,30.9671]
[1744292194017,18.64964886,113.06,112.99,22.124]
[1744292194219,58.44844956,113.05,113.01,58.16412642]
[1744292194420,67.29424956,113.05,113.0,67.01362642]
[1744292194625,18.64964886,113.04,113.0,58.16412642]
[1744292194834,58.16412642,113.02,112.98,58.16412642]
[1744292195024,58.16412642,113.02,112.98,67.01502642]
[1744292195334,26.0,113.03,113.0,58.16412642]
[1744292195739,26.0,113.03,112.99,58.16412642]
[1744292195912,18.933972,113.02,112.98,58.16412642]
[1744292196238,26.0,113.03,112.99,58.16412642]
[1744292196615,26.0,113.03,112.99,67.01382642]
[1744292196941,87.8833,113.07,113.02,58.16412642]
[1744292197140,58.16412642,113.08,113.03,58.16412642]
[1744292197341,58.16412642,113.08,113.04,58.16412642]
[1744292197342,18.64964886,113.08,113.04,58.16412642]
[1744292197544,58.16412642,113.07,113.03,58.16412642]
[1744292197839,58.16412642,113.05,112.99,8.8497]
[1744292198211,58.16412642,113.05,113.01,58.16412642]
[1744292198212,18.933972,113.05,113.01,58.16412642]
[1744292198609,58.44844956,113.05,113.01,58.16412642]
[1744292198813,76.81377528,113.04,112.99,58.16412642]
[1744292199014,58.16412642,113.1,113.02,58.16412642]
[1744292199343,58.16412642,113.1,113.06,58.16412642]
[1744292199344,76.81377528,113.1,113.06,58.16412642]
[1744292199516,18.64964886,113.08,113.04,58.16412642]
[1744292199717,77.09809842,113.09,113.04,58.16412642]
[1744292199917,77.09809842,113.09,112.98,140.14844956]
[1744292199918,76.81377528,113.09,113.05,58.16412642]
[1744292200143,18.64964886,113.05,112.97,30.9816]
[1744292200445,18.933972,113.04,113.0,58.16412642]
[1744292200646,58.16412642,113.06,113.01,58.16412642]
[1744292200944,81.5,113.09,113.05,58.16412642]
[1744292200945,58.16412642,113.09,113.05,58.16412642]
[1744292201341,18.64964886,113.09,113.05,58.16412642]
[1744292201523,18.64964886,113.1,113.05,58.16412642]
[1744292201724,18.64964886,113.09,113.06,58.16412642]
[1744292202245,81.5,113.13,113.0,75.2206]
[1744292202246,0.03,113.14,113.08,58.16412642]
[1744292202447,58.16412642,113.12,113.08,58.16412642]
[1744292202824,58.16412642,113.12,113.07,67.00752642]
[1744292203020,18.64964886,113.1,113.06,58.16412642]
[1744292203232,18.64964886,113.09,113.05,58.16412642]
[1744292203633,44.933972,113.09,113.06,58.16412642]
[1744292203819,44.933972,113.09,113.05,58.16412642]
[1744292204326,111.94059842,113.09,113.02,22.1195]
[1744292204534,26.0,113.09,113.06,58.16412642]